bitfinex-derivatives/quotes_ETHF0:USTF0_20250607
["timestamp","ask_amount","ask_price","bid_price","bid_amount"]
[1749258760205,1.39002653,2479.1,2479.0,5.63013]
[1749258762209,1.39002653,2479.1,2479.0,4.824]
[1749258762617,1.39002653,2479.1,2479.0,5.63013]
[1749258763306,1.45954487,2479.1,2479.0,5.63013]
[1749258763510,0.06951834,2479.1,2479.0,7.03373]
[1749258764210,0.00606171,2479.4,2479.3,0.80604]
[1749258766217,3.875,2480.0,2479.9,0.80584]
[1749258766411,5.26353157,2480.0,2479.8,4.824]
[1749258766609,3.2078,2480.0,2479.9,5.5219]
[1749258766916,4.59612349,2480.0,2479.9,6.32774]
[1749258768116,4.59612349,2480.0,2479.9,5.5219]
[1749258768318,4.59612349,2480.0,2479.9,6.32774]
[1749258769217,4.59612349,2480.0,2479.9,5.5219]
[1749258770119,4.59612349,2480.0,2479.9,6.32774]
[1749258770415,4.59612349,2480.0,2479.9,5.5219]
[1749258770820,4.59612349,2480.0,2479.9,6.32774]
[1749258771820,5.40193349,2480.0,2479.9,5.5219]
[1749258772014,4.59612349,2480.0,2479.9,5.5219]
[1749258773018,4.59612349,2480.0,2479.9,4.824]
[1749258773622,3.2078,2480.0,2479.9,4.824]
[1749258774218,4.59538818,2480.0,2479.9,4.824]
[1749258774621,4.59538818,2480.0,2479.9,5.62984]
[1749258775023,1.38758818,2480.0,2479.9,5.62984]
[1749258776124,1.38758818,2480.0,2479.9,4.824]
[1749258776332,1.45710652,2480.0,2479.9,4.824]
[1749258776518,1.45710652,2480.0,2479.9,5.62984]
[1749258777123,2.26292652,2480.0,2479.8,4.823]
[1749258777425,1.38758818,2479.9,2479.8,5.62887]
[1749258777625,1.38758818,2479.9,2479.8,4.823]
[1749258778932,1.38702677,2479.9,2479.8,4.823]
[1749258779126,1.38702677,2479.9,2479.8,5.62887]
[1749258780629,0.06951834,2480.0,2479.9,0.80584]
[1749258780834,1.4562748,2480.0,2479.9,1.48324]
[1749258781531,1.38675646,2480.0,2479.9,1.48324]
[1749258784338,1.47900924,2480.2,2479.9,1.48324]
[1749258784535,0.06951834,2480.0,2479.9,1.48324]
[1749258786342,0.06951834,2480.0,2479.9,6.66004]
[1749258787241,0.00604924,2480.2,2480.1,0.80578]
[1749258787737,0.00604924,2480.2,2480.1,25.18778]
[1749258790237,3.51427083,2481.2,2480.2,2.01436]
[1749258790537,0.80551,2481.0,2480.6,0.80559]
[1749258790734,1.38737509,2480.9,2480.7,5.4588]
[1749258790939,1.38737509,2480.8,2480.7,5.4588]
[1749258791140,1.38737509,2480.8,2480.7,6.26438]
[1749258791342,0.00604924,2481.0,2480.7,9.47218]
[1749258791639,0.00604924,2481.0,2480.7,9.47217]
[1749258791640,1.3873786,2480.9,2480.7,9.47217]
[1749258791834,0.00604924,2481.0,2480.7,9.47217]
[1749258792035,1.38788498,2480.9,2480.7,9.47217]
[1749258792243,0.81153924,2481.0,2480.7,9.47217]
[1749258792441,1.38751737,2480.9,2480.8,0.80555]
[1749258792633,1.38751737,2480.9,2480.7,8.6666]
[1749258792940,0.81153924,2481.0,2480.7,9.47218]
[1749258792941,0.81154924,2481.0,2480.7,9.47218]
[1749258793127,1.38811695,2480.9,2480.7,9.47218]
[1749258793334,0.00604924,2481.0,2480.7,4.818]
[1749258793533,3.47204803,2480.9,2480.7,4.818]
[1749258793733,1.38861803,2480.8,2480.7,4.818]
[1749258793937,1.2779,2480.9,2480.7,5.62358]
[1749258794137,1.38881482,2480.8,2480.7,4.818]
[1749258794337,1.38881482,2480.8,2480.7,5.62357]
[1749258794631,0.00604924,2481.0,2480.9,0.80552]
[1749258794832,1.39515826,2481.0,2480.9,0.80552]
[1749258795937,1.39515826,2481.0,2480.8,2.09963]
[1749258796140,0.00604924,2481.0,2480.8,2.09963]
[1749258796340,0.81153924,2481.0,2480.9,4.817]
[1749258796536,0.80552,2480.9,2480.6,1.4513]
[1749258796739,0.80552,2480.9,2480.7,4.817]
[1749258796940,0.80554,2480.9,2480.7,4.817]
[1749258797339,0.80553,2480.9,2480.7,4.817]
[1749258797634,0.00604924,2481.0,2480.7,4.817]
[1749258797838,0.81154924,2481.0,2480.7,5.62257]
[1749258798239,0.00604924,2481.0,2480.7,5.62257]
[1749258798943,0.00604924,2481.0,2480.8,0.80554]
[1749258799646,0.00604924,2481.0,2480.9,4.817]
[1749258799844,1.39445148,2481.0,2480.9,4.817]
[1749258800140,0.00604924,2481.0,2480.9,4.817]
[1749258801047,0.81153924,2481.0,2480.9,4.817]
[1749258801239,0.00604924,2481.0,2480.8,0.80554]
[1749258801440,0.00604924,2481.0,2480.9,4.817]
[1749258802837,0.00604924,2481.0,2480.9,5.62252]
[1749258803037,0.00604924,2481.0,2480.9,4.817]
[1749258803240,0.00604924,2481.0,2480.9,5.62252]
[1749258803536,0.81153924,2481.0,2480.9,4.817]
[1749258803734,2.19982313,2481.0,2480.9,4.817]
[1749258805846,0.80552,2480.9,2480.7,0.80557]
[1749258806045,0.80552,2480.9,2480.8,4.816]
[1749258806246,0.80558,2480.7,2480.6,0.6457]
[1749258806452,0.80562,2480.6,2480.5,4.82204924]
[1749258806642,4.165792,2480.6,2480.5,0.00604924]
[1749258807144,9.165792,2480.6,2480.5,0.00604924]
[1749258808448,9.165792,2480.6,2480.5,0.0003467]
[1749258813742,2.066272,2480.6,2480.5,5.6189967]
[1749258814045,1.388672,2480.6,2480.5,5.6189967]
[1749258814240,0.00604924,2481.0,2480.9,0.80552]
[1749258814542,0.6701,2481.5,2481.2,0.8054]
[1749258814747,1.47544,2481.5,2481.3,4.813]
[1749258815141,0.80536,2481.4,2481.3,4.813]
[1749258815549,0.80539,2481.3,2481.2,0.505]
[1749258815745,1.49829,2481.3,2481.2,0.505]
[1749258815948,7.86829,2481.3,2481.2,0.505]
[1749258817244,11.09709883,2481.3,2481.2,0.505]
[1749258818450,0.80552,2480.9,2480.8,4.813]
[1749258822150,0.80558,2480.7,2480.6,6.685]
[1749258823354,0.80556,2480.8,2480.6,6.685]
[1749258823554,0.80556,2480.8,2480.6,8.0828]
[1749258823754,0.80558,2480.7,2480.6,8.0828]
[1749258824653,0.80558,2480.7,2480.6,7.5782]
[1749258824958,0.80557,2480.8,2480.6,7.5782]
[1749258825347,0.80557,2480.8,2480.6,8.38379]
[1749258825555,0.80558,2480.7,2480.6,7.5782]
[1749258825760,0.80557,2480.8,2480.6,8.38381]
[1749258826152,1.40263787,2480.7,2480.6,8.38381]
[1749258826351,2.20821787,2480.7,2480.6,7.5782]
[1749258829361,1.40263787,2480.7,2480.6,7.5782]
[1749258829659,2.20821787,2480.7,2480.6,7.5782]
[1749258830263,2.20841919,2480.7,2480.6,1.3684]
[1749258833256,1.40283919,2480.7,2480.6,1.3684]
[1749258833459,2.20841919,2480.7,2480.6,1.3684]
[1749258833649,2.20841919,2480.7,2480.6,2.6654]
[1749258834455,1.40283919,2480.7,2480.6,2.6654]
[1749258834862,1.40283919,2480.7,2480.6,3.47102]
[1749258835964,2.20841919,2480.7,2480.6,2.6654]
[1749258836261,1.40283919,2480.7,2480.6,3.47102]
[1749258836468,2.20841919,2480.7,2480.6,2.6654]
[1749258836865,1.40283919,2480.7,2480.6,3.47102]
[1749258837364,1.40283919,2480.7,2480.6,8.28302]
[1749258838267,2.20841919,2480.7,2480.6,7.4774]
[1749258839164,2.21438611,2480.7,2480.6,7.4774]
[1749258840568,1.40880611,2480.7,2480.6,7.4774]
[1749258840769,2.21438611,2480.7,2480.6,7.4774]
[1749258840971,2.21438611,2480.7,2480.6,8.28302]
[1749258841170,1.40880611,2480.7,2480.6,8.28302]
[1749258842963,0.8054,2481.3,2480.6,7.4774]
[1749258843170,2.21566152,2481.2,2481.0,0.80546]
[1749258843371,0.80543,2481.2,2481.1,7.3867]
[1749258843557,2.21608731,2481.2,2481.1,7.3867]
[1749258844766,2.21608731,2481.2,2481.1,6.1017]
[1749258845263,0.80558,2480.7,2480.6,4.808]
[1749258845459,2.21623731,2480.7,2480.6,4.808]
[1749258846764,0.80562,2480.6,2480.5,8.6975467]
[1749258846971,2.21627731,2480.6,2480.5,8.6975467]
[1749258847669,2.21627731,2480.6,2480.5,5.4897467]
[1749258847970,5.42407731,2480.6,2480.5,4.8083467]
[1749258848466,1.41065731,2480.6,2480.5,5.6139967]
[1749258848672,1.41065731,2480.6,2480.5,6.2989967]
[1749258848867,2.21620731,2480.8,2480.5,6.8134467]
[1749258849067,1.41065731,2480.7,2480.6,0.80562]
[1749258849261,3.2078,2480.9,2480.7,0.80558]
[1749258849262,1.41093235,2480.8,2480.7,0.80558]
[1749258849467,1.41093235,2480.8,2480.6,0.8056]
[1749258849669,1.41064345,2480.7,2480.6,0.8056]
[1749258849870,1.41064345,2480.7,2480.5,5.4933467]
[1749258850071,2.21626345,2480.6,2480.5,0.6853467]
[1749258850269,2.89456345,2480.6,2480.5,0.0003467]
[1749258851074,6.10236345,2480.6,2480.5,0.0003467]
[1749258851275,6.79276345,2480.6,2480.5,0.0003467]
[1749258851474,0.80565,2480.5,2480.4,0.7158]
[1749258851672,2.21629345,2480.5,2480.4,0.7158]
[1749258851871,2.21629345,2480.5,2480.4,0.5693]
[1749258852175,1.41064345,2480.5,2480.4,1.37498]
[1749258852574,2.21629345,2480.5,2480.4,0.5693]
[1749258856173,4.86419345,2480.5,2480.4,0.5693]
[1749258857575,1.41064345,2480.5,2480.4,1.37498]
[1749258858682,2.21629345,2480.5,2480.4,0.5693]
[1749258859375,2.21629345,2480.5,2480.4,5.3773]
[1749258860275,2.21629345,2480.5,2480.4,5.3127]
[1749258860981,1.41064345,2480.5,2480.4,5.3127]
[1749258861170,1.41064345,2480.5,2480.4,0.5047]
[1749258861379,2.21629345,2480.5,2480.4,5.3127]
[1749258861575,1.41064345,2480.5,2480.4,5.3127]
[1749258862082,1.41064345,2480.5,2480.4,6.11838]
[1749258863277,1.41064345,2480.5,2480.4,5.3127]
[1749258863975,1.41064345,2480.5,2480.4,6.11838]
[1749258865277,1.44147,2480.8,2480.5,0.80563]
[1749258865477,2.21441705,2480.7,2480.5,1.46273]
[1749258865678,1.40883705,2480.6,2480.5,0.6571]
[1749258866382,1.40883705,2480.6,2480.5,1.46275]
[1749258867076,2.21445705,2480.6,2480.5,0.6571]
[1749258867277,1.40883705,2480.6,2480.5,0.6571]
[1749258868180,1.40883705,2480.6,2480.5,1.46275]
[1749258869078,1.40883705,2480.6,2480.5,0.6571]
[1749258869882,2.21445705,2480.6,2480.5,0.6571]
[1749258870884,2.21445705,2480.6,2480.5,5.4651]
[1749258871081,0.80562,2480.6,2480.5,5.4651]
[1749258871279,2.21458025,2480.6,2480.5,5.4651]
[1749258871479,1.40896025,2480.6,2480.5,5.4651]
[1749258872585,1.40896025,2480.6,2480.5,6.27075]
[1749258873580,1.40909904,2480.6,2480.5,6.27075]
[1749258874087,1.40909904,2480.7,2480.5,6.27075]
[1749258874388,1.40909904,2480.6,2480.5,6.27075]
[1749258875982,1.40909904,2480.6,2480.5,5.4651]
[1749258876190,2.21471904,2480.6,2480.5,5.4651]
[1749258876589,2.21584486,2480.6,2480.5,5.4651]
[1749258879395,1.41022486,2480.6,2480.5,5.4651]
[1749258879605,1.41022486,2480.6,2480.5,6.27075]
[1749258880697,1.41022486,2480.6,2480.5,5.4651]
[1749258880896,1.41022486,2480.6,2480.5,6.27075]
[1749258882000,1.41069379,2480.6,2480.5,6.27075]
[1749258882698,1.41069379,2480.6,2480.5,0.6571]
[1749258882995,2.21630379,2480.6,2480.5,4.804]
[1749258885500,2.21630379,2480.6,2480.5,5.3093]
[1749258886695,3.51390379,2480.6,2480.5,5.3093]
[1749258887007,6.72170379,2480.6,2480.5,0.5053]
[1749258887195,6.72170379,2480.6,2480.5,0.20303102]
[1749258887901,0.80565,2480.5,2480.4,0.1466]
[1749258888104,4.18904379,2480.5,2480.4,0.1466]
[1749258895007,2.87224379,2480.5,2480.4,0.1466]
[1749258895198,1.41069379,2480.5,2480.4,0.1466]
[1749258895403,1.41069379,2480.5,2480.4,7.82458]
[1749258895797,1.41069379,2480.5,2480.4,2.0189]
[1749258895798,2.21634379,2480.5,2480.4,2.0189]
[1749258896100,2.21634379,2480.5,2480.4,0.6408]
[1749258897298,1.41069379,2480.5,2480.4,0.6408]
[1749258897704,2.21634379,2480.5,2480.4,0.6408]
[1749258898895,0.80568,2480.4,2480.3,5.0153]
[1749258899094,2.21637379,2480.4,2480.3,4.9507]
[1749258899306,2.17862465,2480.4,2480.3,4.9507]
[1749258900204,2.17862465,2480.4,2480.3,0.1467]
[1749258900409,2.17862465,2480.4,2480.3,4.9507]
[1749258901103,1.37294465,2480.4,2480.3,4.9507]
[1749258901607,1.37294465,2480.4,2480.3,5.75641]
[1749258901806,1.37294465,2480.4,2480.3,7.05981]
[1749258902104,2.17862465,2480.4,2480.3,4.9507]
[1749258902808,5.38642465,2480.4,2480.3,4.9467]
[1749258903207,2.17862465,2480.4,2480.3,4.9467]
[1749258903809,2.17862465,2480.4,2480.3,0.1467]
[1749258904008,5.38642465,2480.4,2480.3,0.1467]
[1749258904308,2.17862465,2480.4,2480.3,0.1467]
[1749258904509,3.50022465,2480.4,2480.3,0.1467]
[1749258905404,6.70802465,2480.4,2480.3,0.1467]
[1749258910013,0.80584,2479.9,2479.8,4.801]
[1749258910215,2.17878465,2479.9,2479.8,4.801]
[1749258910710,2.81088465,2479.9,2479.8,4.801]
[1749258911109,0.80591,2479.7,2479.6,24.38104924]
[1749258911314,2.17885465,2479.7,2479.6,29.18204924]
[1749258911713,2.17885465,2479.7,2479.6,24.38104924]
[1749258912015,2.17885465,2479.7,2479.6,0.00604924]
[1749258913207,5.38665465,2479.7,2479.6,0.00604924]
[1749258914411,15.18765465,2479.7,2479.6,9.24e-06]
[1749258914709,10.18765465,2479.7,2479.6,9.24e-06]
[1749258914909,11.47165465,2479.7,2479.6,9.24e-06]
[1749258915713,6.67065465,2479.7,2479.6,9.24e-06]
[1749258915915,6.67065465,2479.7,2479.0,5.433]
[1749258915916,0.80605,2479.3,2479.1,1.279]
[1749258916218,0.80605,2479.3,2479.2,0.6856]
[1749258917209,2.2066286,2479.3,2479.2,0.6856]
[1749258918710,1.4005786,2479.3,2479.0,0.63804924]
[1749258918913,4.0139,2479.1,2479.0,0.00604924]
[1749258919113,5.41291059,2479.1,2479.0,0.00604924]
[1749258919423,6.78491059,2479.1,2479.0,0.00604924]
[1749258920709,11.78491059,2479.1,2479.0,0.00604924]
[1749258922418,6.78491059,2479.1,2479.0,0.00604924]
[1749258923216,6.78491059,2479.1,2478.4,6.1253]
[1749258923217,0.8063,2478.5,2478.4,6.1253]
[1749258923614,0.8063,2478.5,2478.4,1.3233]
[1749258923817,0.8063,2478.5,2478.4,0.691]
[1749258924021,0.80633,2478.4,2478.3,4.803]
[1749258925320,0.80636,2478.3,2478.2,0.6368]
[1749258927022,0.8064,2478.2,2478.1,0.66784924]
[1749258927321,1.4881,2478.2,2478.1,0.66784924]
[1749258927514,0.8064,2478.2,2478.1,0.66784924]
[1749258930622,0.8064,2478.2,2478.1,1.94884924]
[1749258930818,3.85984924,2478.6,2478.1,1.94884924]
[1749258931018,0.80633,2478.5,2478.2,2.08737]
[1749258931213,0.80633,2478.4,2478.3,1.281]
[1749258932624,0.8064,2478.2,2478.1,0.66784924]
[1749258932823,0.8064,2478.2,2478.1,0.00604924]
[1749258934118,0.8064,2478.2,2478.1,0.65324924]
[1749258934322,0.8064,2478.2,2478.1,2.05374924]
[1749258934513,0.00604924,2478.6,2478.1,7.05374924]
[1749258934719,0.00604924,2478.6,2478.5,0.8063]
[1749258934921,0.00604924,2478.6,2478.5,5.6093]
[1749258935120,0.00604924,2478.6,2478.5,10.6093]
[1749258935322,0.00604924,2478.6,2478.5,12.0098]
[1749258943034,0.81230924,2478.6,2478.5,1.4005]
[1749258943331,0.00604924,2478.6,2478.5,7.0088]
[1749258945228,0.00604924,2478.6,2478.5,10.2166]
[1749258945931,0.00604924,2478.6,2478.5,15.2166]
[1749258947134,3.2078,2479.4,2478.6,2.01559]
[1749258947435,0.80595,2479.6,2479.4,0.806]
[1749258947630,1.40209018,2479.5,2479.4,4.802]
[1749258948025,1.40209018,2479.5,2479.4,5.608]
[1749258948226,1.40209018,2479.5,2479.4,6.9439]
[1749258949438,1.40152751,2479.5,2479.4,6.9439]
[1749258950831,0.81197924,2479.7,2479.4,6.9439]
[1749258951034,1.40039862,2479.6,2479.4,6.9439]
[1749258951235,0.81197924,2479.7,2479.4,6.9439]
[1749258951536,2.20635964,2479.6,2479.4,6.1379]
[1749258951729,0.80597,2479.5,2479.3,2.15242]
[1749258951930,0.80596,2479.6,2479.4,4.802]
[1749258952337,0.6895,2479.6,2479.4,5.60798]
[1749258952537,1.49545,2479.6,2479.4,5.60798]
[1749258952731,1.49545,2479.6,2479.5,4.802]
[1749258952930,2.89501927,2479.6,2479.5,4.802]
[1749258953131,1.49544,2479.6,2479.5,4.802]
[1749258953634,0.6895,2479.6,2479.5,4.802]
[1749258953834,1.49544,2479.6,2479.5,4.802]
[1749258955734,0.6895,2479.6,2479.2,3.21384924]
[1749258955931,0.806,2479.4,2479.3,4.801]
[1749258957339,2.13779,2479.5,2479.3,5.60703]
[1749258957936,2.13779,2479.5,2479.3,4.801]
[1749258958342,2.13779,2479.5,2479.3,5.60702]
[1749258958541,2.13779,2479.5,2479.3,4.801]
[1749258958743,2.13779,2479.5,2479.3,5.60704]
[1749258959041,2.13779,2479.5,2479.3,4.801]
[1749258959644,2.13779,2479.5,2479.3,5.60703]
[1749258959944,0.80599,2479.5,2479.3,5.60703]
[1749258960344,1.49545,2479.6,2479.4,0.80599]
[1749258960643,1.49545,2479.6,2479.4,1.46039]
[1749258960838,0.80597,2479.5,2479.4,0.6544]
[1749258961743,2.20770494,2479.5,2479.4,0.6544]
[1749258963042,0.806,2479.4,2479.3,4.801]
[1749258963543,0.6895,2479.6,2479.2,3.21384924]
[1749258963743,0.6895,2479.6,2479.3,4.799]
[1749258963744,0.80602,2479.4,2479.3,4.799]
[1749258963943,1.40228244,2479.4,2479.3,5.60504]
[1749258964146,1.40317717,2479.5,2479.4,0.806]
[1749258964346,2.20914697,2479.5,2479.3,4.799]
[1749258964549,2.20917697,2479.4,2479.3,4.799]
[1749258964748,2.20917697,2479.4,2479.2,3.21384924]
[1749258965040,0.80604,2479.3,2479.2,0.00604924]
[1749258965238,5.34324,2479.3,2479.2,0.00604924]
[1749258965440,6.74682177,2479.3,2479.2,0.00604924]
[1749258965644,3.53902177,2479.3,2479.2,0.00604924]
[1749258966044,2.73298177,2479.3,2479.2,0.00604924]
[1749258966337,1.40358177,2479.3,2479.2,0.00604924]
[1749258966539,1.40358177,2479.4,2479.2,0.00604924]
[1749258966743,2.20962177,2479.3,2479.2,0.00604924]
[1749258968344,1.40358177,2479.3,2479.2,0.00604924]
[1749258968744,0.80604,2479.3,2479.2,0.00604924]
[1749258968948,2.20962177,2479.3,2479.2,0.00604924]
[1749258969644,5.41742177,2479.3,2479.2,0.00604924]
[1749258969845,0.8061,2479.1,2479.0,4.799]
[1749258970047,2.20968177,2479.1,2479.0,4.799]
[1749258970452,3.60918177,2479.1,2479.0,4.799]
[1749258970949,0.80617,2478.9,2478.8,0.00604924]
[1749258971149,2.20975177,2478.9,2478.8,0.00604924]
[1749258971550,3.60925177,2478.9,2478.8,0.00604924]
[1749258972054,0.80636,2478.3,2478.2,4.799]
[1749258972254,2.20994177,2478.3,2478.2,4.799]
[1749258972954,5.41774177,2478.3,2478.2,4.799]
[1749258974850,2.20994177,2478.3,2478.2,4.799]
[1749258978355,0.80636,2478.3,2478.2,4.799]
[1749258979758,0.80643,2478.1,2478.0,0.00604924]
[1749258979958,0.80643,2478.1,2478.0,4.80704924]
[1749258982961,2.20631259,2478.1,2478.0,4.80704924]
[1749258983163,0.80643,2478.1,2478.0,4.80704924]
[1749258987659,2.20564543,2478.1,2478.0,0.00604924]
[1749258987864,2.20903,2478.1,2478.0,0.00604924]
[1749258988063,3.60784545,2478.1,2478.0,0.00604924]
[1749258988261,2.20903,2478.1,2478.0,0.00604924]
[1749258988461,3.60763352,2478.1,2478.0,0.00604924]
[1749258988662,3.60778622,2478.1,2478.0,0.00604924]
[1749258988964,2.20903,2478.1,2478.0,0.00604924]
[1749258989165,3.60779652,2478.1,2478.0,0.00604924]
[1749258989459,9.81749652,2478.1,2477.6,3.2078]
[1749258989659,9.81749652,2478.1,2477.6,4.802]
[1749258989660,0.80656,2477.7,2477.6,4.802]
[1749258989864,0.80666,2477.4,2477.3,1.3491]
[1749258990066,0.80666,2477.4,2477.3,6.1511]
[1749258990362,0.80666,2477.4,2477.3,1.3491]
[1749258990563,0.80666,2477.4,2477.3,2.676]
[1749258990759,0.80666,2477.4,2477.3,7.478]
[1749258990963,0.80666,2477.4,2477.3,6.1511]
[1749258991958,5.0,2477.4,2476.8,24.4]
[1749258992163,0.80675,2477.1,2477.0,0.6924]
[1749258992558,0.80675,2477.1,2477.0,1.9589]
[1749258995362,3.2078,2477.5,2477.0,2.76568]
[1749258995670,0.80671,2477.3,2477.1,1.3354]
[1749258996066,0.80671,2477.3,2477.1,2.14215]
[1749258996272,0.80671,2477.3,2477.1,1.3354]
[1749258997573,3.8943,2477.5,2477.1,1.3354]
[1749258997775,1.39924045,2477.4,2477.1,1.3354]
[1749258997976,0.80672,2477.3,2477.1,1.3354]
[1749258998176,0.80672,2477.2,2477.1,1.3354]
[1749258998468,0.80675,2477.1,2477.0,0.6924]
[1749259000267,0.80675,2477.1,2477.0,5.4934]
[1749259000874,5.1914,2477.5,2477.0,5.4934]
[1749259001075,1.40073215,2477.4,2477.1,0.80675]
[1749259001265,2.20742215,2477.3,2477.1,1.3797]
[1749259001464,2.20745215,2477.2,2477.1,1.3797]
[1749259001667,1.40073215,2477.2,2477.1,2.18645]
[1749259002976,1.40073215,2477.2,2477.1,1.3797]
[1749259003275,2.20745215,2477.2,2477.1,1.3797]
[1749259003478,1.40073215,2477.2,2477.1,1.3797]
[1749259004178,1.40073215,2477.2,2477.1,2.18645]
[1749259004478,1.40073215,2477.2,2477.1,1.3797]
[1749259004775,2.20745215,2477.2,2477.1,1.3797]
[1749259004976,1.40073215,2477.2,2477.1,1.3797]
[1749259005978,2.20745215,2477.2,2477.1,1.3797]
[1749259007073,0.80675,2477.1,2477.0,5.4934]
[1749259007272,2.20748215,2477.1,2477.0,5.4934]
[1749259009980,2.20748215,2477.1,2476.8,26.3523]
[1749259009981,0.80682,2476.9,2476.8,29.8533]
[1749259010167,2.20755215,2476.9,2476.8,4.801]
[1749259010480,2.20755215,2476.9,2476.5,6.1177]
[1749259010481,0.80692,2476.6,2476.5,6.1177]
[1749259010682,2.20765215,2476.6,2476.5,6.1177]
[1749259010982,2.20765215,2476.6,2476.5,5.435]
[1749259011182,0.80701,2476.3,2476.2,3.8905]
[1749259011375,0.80701,2476.3,2476.2,6.1177]
[1749259011881,2.20774215,2476.3,2476.2,6.1177]
[1749259012683,1.40073215,2476.3,2476.2,6.1177]
[1749259013282,2.20774215,2476.3,2476.2,6.1177]
[1749259014478,1.40073215,2476.3,2476.2,6.1177]
[1749259015384,2.20774215,2476.3,2476.2,6.1177]
[1749259015590,1.40073215,2476.3,2476.2,6.1177]
[1749259015786,1.40073215,2476.3,2476.2,6.92475]
[1749259016084,1.40005063,2476.3,2476.2,8.23115]
[1749259017987,1.40005063,2476.3,2476.2,7.4241]
[1749259018289,2.20706063,2476.3,2476.2,6.1187]
[1749259018489,2.20706063,2476.3,2476.2,4.802]
[1749259019692,1.40042008,2476.3,2476.2,4.802]
[1749259019892,1.40042008,2476.3,2476.2,7.59062]
[1749259022394,0.69024924,2476.8,2476.5,0.80695]
[1749259022590,1.40030994,2476.7,2476.2,4.802]
[1749259022790,0.80701,2476.3,2476.2,4.802]
[1749259022987,0.807,2476.4,2476.2,4.802]
[1749259023298,1.40030994,2476.3,2476.2,5.60905]
[1749259023784,0.80697,2476.5,2476.3,0.80701]
[1749259023984,1.40015325,2476.4,2476.3,0.80701]
[1749259024694,1.40015325,2476.4,2476.3,2.09171]
[1749259027998,3.89804924,2476.8,2476.4,0.80696]
[1749259028198,2.2070262,2476.7,2476.5,0.80695]
[1749259028497,1.4001262,2476.6,2476.5,0.6816]
[1749259028697,2.2070462,2476.6,2476.5,0.6816]
[1749259029295,2.20750747,2476.6,2476.5,0.6816]
[1749259035111,2.20750747,2476.6,2476.5,1.48855]
[1749259035313,2.20750747,2476.6,2476.5,0.6816]
[1749259036711,1.40058747,2476.6,2476.5,0.6816]
[1749259036916,1.40058747,2476.6,2476.5,1.48855]
[1749259037116,0.00604924,2476.8,2476.7,0.80688]
[1749259037320,1.40919776,2476.8,2476.7,5.60688]
[1749259040012,1.40919776,2476.8,2476.7,8.81468]
[1749259042319,0.00604924,2476.8,2476.7,8.81468]
[1749259043018,1.42770387,2476.8,2476.7,4.8]
[1749259043523,2.06940387,2476.8,2476.7,5.60688]
[1749259049725,0.80666,2477.4,2477.2,0.8067]
[1749259049924,2.86628136,2477.3,2476.9,0.6736]
[1749259050128,1.42167136,2477.2,2477.1,0.80675]
[1749259050431,2.22840136,2477.2,2477.0,1.44106]
[1749259050728,1.42167136,2477.1,2477.0,1.44106]
[1749259054735,0.00604924,2477.3,2477.2,0.80672]
[1749259054929,1.42704601,2477.3,2477.2,5.60572]
[1749259055427,1.42704601,2477.3,2477.2,6.87072]
[1749259056027,1.42704601,2477.3,2477.2,5.60572]
[1749259057232,1.42704601,2477.3,2477.2,6.87072]
[1749259057929,0.00604924,2477.3,2477.2,6.87072]
[1749259062538,3.2078,2478.0,2477.9,0.80649]
[1749259062732,1.42089736,2478.0,2477.9,0.80649]
[1749259063035,1.42089736,2478.0,2477.8,4.796]
[1749259063036,2.22735736,2478.0,2477.8,4.796]
[1749259063232,1.42089736,2477.9,2477.8,5.60251]
[1749259063738,1.42089736,2477.9,2477.8,4.796]
[1749259063936,1.42089736,2477.9,2477.5,1.3255]
[1749259064134,3.42839736,2477.8,2477.6,4.796]
[1749259064326,2.22745736,2477.7,2477.6,4.796]
[1749259064528,4.23975736,2477.7,2477.6,4.796]
[1749259068339,4.24031617,2477.7,2477.6,4.796]
[1749259072743,0.80664,2477.5,2477.3,0.80668]
[1749259072941,0.80664,2477.5,2477.4,4.795]
[1749259073146,2.22856943,2477.5,2477.4,4.795]
[1749259073640,2.22856943,2477.5,2477.4,5.60166]
[1749259073846,2.22856943,2477.5,2477.4,4.795]
[1749259076352,1.42192943,2477.5,2477.4,4.795]
[1749259076546,2.22854943,2477.5,2477.4,4.795]
[1749259078850,3.23485807,2478.1,2478.0,0.80646]
[1749259079061,0.80646,2478.0,2477.9,4.795]
[1749259079259,0.80653,2477.8,2477.7,3.2078]
[1749259079464,0.80653,2477.8,2477.7,8.0028]
[1749259079761,0.80653,2477.8,2477.7,4.795]
[1749259080058,0.80659,2477.6,2477.5,0.6766]
[1749259080259,0.6477,2477.9,2477.3,3.2078]
[1749259080459,0.80662,2477.5,2477.4,4.795]
[1749259080866,3.2078,2477.7,2477.1,0.6335]
[1749259081060,3.2078,2477.7,2477.0,27.6168]
[1749259081061,0.80675,2477.1,2477.0,28.3037]
[1749259081261,0.80675,2477.1,2477.0,3.2078]
[1749259084565,0.80679,2477.0,2476.9,0.00604924]
[1749259085557,0.80677,2477.1,2476.9,0.81285924]
[1749259085868,0.80679,2477.0,2476.9,0.00604924]
[1749259086568,0.6334,2477.2,2476.9,0.00604924]
[1749259086767,0.80679,2477.0,2476.9,0.00604924]
[1749259087866,2.14309,2477.0,2476.9,0.00604924]
[1749259090967,3.54597594,2477.0,2476.9,0.00604924]
[1749259091471,0.80698,2476.4,2476.3,5.4498]
[1749259091671,0.80698,2476.4,2476.3,4.793]
[1749259091866,2.20941268,2476.4,2476.3,4.793]
[1749259092369,0.80705,2476.2,2476.1,0.64284924]
[1749259092576,2.20948268,2476.2,2476.1,0.64284924]
[1749259093474,2.20892802,2476.2,2476.1,0.64284924]
[1749259094472,0.807,2476.4,2476.2,0.80703]
[1749259094669,0.80696,2476.5,2476.3,0.80701]
[1749259094870,1.39972984,2476.4,2476.3,0.80701]
[1749259095067,0.80697,2476.5,2476.3,0.80701]
[1749259095474,0.80698,2476.4,2476.2,2.08913]
[1749259095675,0.80698,2476.4,2476.3,1.2821]
[1749259096272,0.00604924,2476.6,2476.3,1.2821]
[1749259096576,0.80695,2476.5,2476.4,4.794]